bitfinex/quotes_ETHUSD_20260106
["timestamp","ask_amount","ask_price","bid_price","bid_amount"]
[1767671791936,0.002,3220.5,3219.9,0.44908555]
[1767671792124,0.002,3220.5,3219.9,1.42433918]
[1767671793561,0.002,3220.5,3220.0,0.97525363]
[1767671800734,0.002,3220.5,3220.3,0.001]
[1767671806648,1.01488906,3220.5,3220.3,0.001]
[1767671806848,0.002,3220.5,3220.3,0.001]
[1767671814579,0.002,3220.5,3220.3,0.97625363]
[1767671818278,0.002,3220.5,3220.3,0.001]
[1767671818444,0.94902223,3220.8,3220.3,0.001]
[1767671818650,0.29060488,3220.7,3220.3,0.001]
[1767671818876,0.002,3221.0,3220.4,0.95136042]
[1767671819077,0.002,3221.0,3220.5,0.44755476]
[1767671819254,0.002,3221.0,3220.4,0.95136042]
[1767671822389,1.0107497,3221.0,3220.3,0.001]
[1767671824282,0.002,3220.7,3220.3,0.001]
[1767671826679,1.0107497,3220.7,3220.3,0.001]
[1767671828952,0.002,3220.7,3220.3,0.001]
[1767671830661,1.0087497,3220.6,3220.3,0.001]
[1767671831063,1.0087497,3220.5,3219.7,12.509532]
[1767671831471,1.0087497,3220.5,3219.7,0.96570487]
[1767671832062,1.0087497,3220.5,3219.7,4.07158053]
[1767671832389,1.0087497,3220.5,3219.8,0.96570487]
[1767671835091,1.0087497,3220.5,3219.4,0.40980098]
[1767671835092,1.0087497,3220.4,3219.4,0.40980098]
[1767671835267,1.0087497,3220.3,3219.3,0.96570487]
[1767671835759,1.0087497,3220.3,3219.4,2.96909187]
[1767671835959,1.0087497,3220.3,3220.1,0.001]
[1767671836282,1.0087497,3220.3,3219.4,0.96570487]
[1767671836485,1.0087497,3220.3,3219.4,1.37290919]
[1767671836788,1.0067497,3220.3,3219.4,1.37290919]
[1767671837688,1.0067497,3220.3,3219.5,0.96570487]
[1767671838412,4.1121227,3220.3,3219.5,0.96570487]
[1767671839057,1.0087497,3220.2,3219.2,0.96570487]
[1767671839258,1.0087497,3220.1,3219.2,0.96570487]
[1767671841361,1.0087497,3220.0,3219.0,1.77970487]
[1767671841565,1.0087497,3220.0,3219.1,2.918]
[1767671841893,1.0087497,3220.0,3219.1,0.96570487]
[1767671842089,1.0087497,3220.0,3219.2,1.454329]
[1767671842567,1.0087497,3220.0,3219.3,0.96570487]
[1767671843085,1.0087497,3220.2,3219.3,0.96570487]
[1767671845362,4.11419659,3220.2,3219.3,0.96570487]
[1767671846890,1.0087497,3220.1,3219.3,0.96570487]
[1767671847297,1.0087497,3220.1,3219.4,0.96570487]
[1767671848203,4.1140967,3220.3,3219.5,0.96670487]
[1767671851098,1.00108285,3220.2,3219.5,0.96670487]
[1767671851299,1.00108285,3220.2,3219.5,0.001]
[1767671851503,1.00108285,3219.9,3219.5,0.001]
[1767671853511,1.00108285,3219.8,3219.5,0.001]
[1767671854982,3.10553859,3220.1,3219.5,0.001]
[1767671855500,1.00108285,3220.0,3219.5,0.001]
[1767671856178,1.00108285,3219.9,3219.5,0.001]
[1767671859725,1.00108285,3220.1,3219.5,0.001]
[1767671859881,1.00108285,3220.1,3219.8,0.001]
[1767671860401,1.00108285,3220.4,3219.8,0.001]
[1767671860602,1.00108285,3220.4,3219.8,0.92260493]
[1767671861597,4.92016257,3220.6,3219.8,0.92260493]
[1767671862181,1.00108285,3220.5,3219.8,0.001]
[1767671864797,3.10691508,3220.7,3219.8,0.001]
[1767671865110,0.29029289,3220.6,3219.8,0.92260493]
[1767671865313,0.29029289,3220.5,3219.9,0.92160493]
[1767671865514,4.10799793,3220.7,3219.9,0.92160493]
[1767671865697,0.29036059,3220.6,3219.9,0.92160493]
[1767671865898,0.29036059,3220.5,3219.9,0.92160493]
[1767671866097,4.10799793,3220.7,3219.9,0.92160493]
[1767671866296,0.29035435,3220.6,3219.9,0.92160493]
[1767671866527,0.29035435,3220.5,3219.9,0.92160493]
[1767671866706,3.10504784,3220.6,3219.9,0.92160493]
[1767671866905,0.29035437,3220.5,3219.9,0.92160493]
[1767671867205,3.10504784,3220.6,3219.9,0.92160493]
[1767671867526,0.29034796,3220.5,3219.9,0.92160493]
[1767671867707,3.10504784,3220.6,3219.9,0.92160493]
[1767671868025,0.2903481,3220.5,3219.9,0.92160493]
[1767671868225,3.10504784,3220.6,3219.9,0.92160493]
[1767671868457,0.29034293,3220.5,3219.9,0.92160493]
[1767671868629,4.10613069,3220.6,3219.9,0.92160493]
[1767671868931,0.29034322,3220.5,3219.9,0.92160493]
[1767671869104,1.00108285,3220.5,3219.8,0.001]
[1767671871199,4.10624476,3220.5,3219.8,0.001]
[1767671871510,0.002,3220.2,3219.8,0.001]
[1767671872027,0.002,3220.2,3219.8,0.92260493]
[1767671875732,0.91845581,3220.5,3219.8,0.001]
[1767671877208,0.91845581,3220.5,3219.8,0.31169639]
[1767671877408,0.91845581,3220.5,3219.8,0.001]
[1767671877618,0.91645581,3220.4,3219.8,0.001]
[1767671878023,3.10714177,3220.5,3219.8,0.001]
[1767671878308,4.02359758,3220.5,3219.8,0.001]
[1767671879040,4.02359758,3220.5,3219.8,0.91741794]
[1767671880330,0.91845581,3220.5,3219.8,0.91741794]
[1767671881406,4.02357299,3220.5,3219.8,0.91741794]
[1767671882642,4.00405542,3220.5,3219.8,0.91741794]
[1767671884245,0.94021144,3220.7,3220.1,0.001]
[1767671884418,0.29033068,3220.6,3220.1,0.001]
[1767671884745,0.002,3220.2,3220.1,0.001]
[1767671891746,0.94021144,3220.2,3219.8,0.001]
[1767671892654,0.94021144,3220.2,3219.5,0.001]
[1767671892853,0.94021144,3220.2,3219.5,0.3117242]
[1767671896136,0.94021144,3220.2,3219.5,1.29585103]
[1767671897852,0.93821144,3220.1,3219.5,1.29585103]
[1767671898051,0.93821144,3220.1,3219.5,0.98512683]
[1767671899153,0.93821144,3220.1,3219.5,0.001]
[1767671901960,0.002,3220.2,3219.5,0.98512683]
[1767671903860,0.94021144,3220.2,3219.5,0.98512683]
[1767671908668,0.94021144,3220.2,3219.8,0.001]
[1767671908864,1.42605722,3220.2,3219.8,0.001]
[1767671909169,0.002,3219.9,3219.8,0.001]
[1767671909547,0.94021144,3220.2,3219.8,0.001]
[1767671911543,0.002,3220.2,3219.8,0.97768335]
[1767671913661,0.002,3220.5,3219.8,0.001]
[1767671913662,0.98564061,3220.5,3219.8,0.001]
[1767671913963,0.98564061,3220.5,3219.9,0.31068382]
[1767671914130,0.98564061,3220.5,3219.9,0.28237611]
[1767671914536,0.002,3220.5,3219.8,0.97768335]
[1767671915970,0.002,3220.5,3219.9,0.97668335]
[1767671918495,0.98564061,3220.5,3219.8,0.001]
[1767671919842,0.98364061,3220.4,3219.8,0.001]
[1767671920280,0.002,3220.2,3219.8,0.001]
[1767671923062,0.002,3220.2,3219.8,0.97768335]
[1767671925192,0.002,3220.2,3219.8,1.38604727]
[1767671925394,0.002,3220.2,3219.8,0.97768335]
[1767671927114,0.002,3220.2,3219.8,0.001]
[1767671928112,0.002,3220.2,3219.9,0.97668335]
[1767671936510,0.002,3220.2,3219.8,0.001]
[1767671937006,0.002,3220.2,3219.8,0.91110466]
[1767671937316,0.92681642,3220.2,3219.8,0.001]
[1767671938007,0.92681642,3220.7,3220.0,0.91010466]
[1767671938302,0.92681642,3220.7,3219.8,0.91110466]
[1767671938603,0.92681642,3220.7,3220.2,0.01771557]
[1767671941812,1.2757531,3220.6,3220.2,0.01771557]
[1767671941979,0.98527031,3220.6,3220.2,0.01771557]
[1767671942607,0.40516415,3220.7,3220.2,0.01771557]
[1767671942808,0.29048454,3220.6,3220.2,0.01771557]
[1767671942978,0.40516415,3220.7,3220.2,0.01771557]
[1767671943306,0.002,3220.4,3220.2,0.01771557]
[1767671945183,0.002,3220.4,3220.2,0.00654221]
[1767671949384,0.002,3220.7,3220.2,0.00654221]
[1767671949579,0.98527031,3220.6,3220.2,0.00654221]
[1767671950581,0.002,3220.7,3220.2,0.00654221]
[1767671951192,0.98727031,3220.7,3220.2,0.00654221]
[1767671952130,4.09218619,3220.7,3220.2,0.00654221]
[1767671952427,4.81187736,3220.7,3220.2,0.00654221]
[1767671953715,0.98527031,3220.6,3220.2,0.00654221]
[1767671954989,0.002,3220.4,3220.2,0.00654221]
[1767671959123,0.002,3220.4,3220.0,0.97786439]
[1767671966806,0.002,3220.4,3220.3,0.001]
[1767671969730,0.98727031,3220.7,3220.3,0.001]
[1767671969938,0.98527031,3220.5,3220.3,0.001]
[1767671971441,0.92578154,3220.7,3220.3,0.001]
[1767671971616,0.29067334,3220.6,3220.3,0.001]
[1767671971813,0.92578154,3220.7,3220.3,0.001]
[1767671972013,0.29067331,3220.6,3220.3,0.001]
[1767671972213,0.92578154,3220.7,3220.3,0.001]
[1767671972441,0.29067387,3220.6,3220.3,0.001]
[1767671972640,0.92578154,3220.7,3220.3,0.001]
[1767671972840,0.29067384,3220.6,3220.3,0.001]
[1767671973009,0.92578154,3220.7,3220.3,0.001]
[1767671973213,0.29067384,3220.6,3220.3,0.001]
[1767671973414,0.92578154,3220.7,3220.3,0.001]
[1767671973613,0.2906744,3220.6,3220.3,0.001]
[1767671973814,0.002,3220.7,3220.3,0.001]
[1767671976141,0.002,3220.7,3220.2,0.94213294]
[1767671977321,0.29059657,3220.6,3220.2,0.94213294]
[1767671977518,0.002,3220.7,3220.2,0.94213294]
[1767671977722,0.29059819,3220.6,3220.2,0.94213294]
[1767671977939,0.002,3220.7,3220.2,0.94213294]
[1767671978140,0.29059816,3220.6,3220.2,0.94213294]
[1767671978340,0.002,3220.7,3220.3,0.001]
[1767671978621,0.29059832,3220.6,3220.3,0.001]
[1767671978821,0.002,3220.7,3220.3,0.001]
[1767671979021,0.29059832,3220.6,3220.3,0.001]
[1767671979222,0.002,3220.7,3220.3,0.001]
[1767671979452,0.29059852,3220.6,3220.3,0.001]
[1767671979744,0.002,3220.7,3220.3,0.001]
[1767671979928,0.29059852,3220.6,3220.3,0.001]
[1767671980129,0.002,3220.7,3220.3,0.001]
[1767671980330,0.29059868,3220.6,3220.3,0.001]
[1767671980546,0.002,3220.7,3220.3,0.001]
[1767671980747,0.29059868,3220.6,3220.3,0.001]
[1767671980922,0.002,3220.7,3220.3,0.001]
[1767671981124,0.29059871,3220.6,3220.3,0.001]
[1767671981333,0.002,3220.7,3220.3,0.001]
[1767671981532,0.2905987,3220.6,3220.3,0.001]
[1767671981732,0.002,3220.7,3220.3,0.001]
[1767671981937,0.2905987,3220.6,3220.3,0.001]
[1767671982121,0.002,3220.7,3220.3,0.001]
[1767671982321,0.29059898,3220.6,3220.3,0.001]
[1767671982522,0.002,3220.7,3220.3,0.001]
[1767671982722,0.29059898,3220.6,3220.3,0.001]
[1767671983020,0.002,3220.7,3220.3,0.001]
[1767671983220,0.29059896,3220.6,3220.3,0.001]
[1767671983421,0.002,3220.7,3220.3,0.001]
[1767671983630,0.29060006,3220.6,3220.3,0.001]
[1767671983831,0.002,3220.7,3220.3,0.001]
[1767671984040,0.29060006,3220.6,3220.3,0.001]
[1767671984238,0.002,3220.7,3220.3,0.001]
[1767671984437,0.2905989,3220.6,3220.3,0.001]
[1767671984651,0.002,3220.7,3220.3,0.001]
[1767671984852,0.2905989,3220.6,3220.3,0.001]
[1767671985053,0.002,3220.7,3220.3,0.001]
[1767671985352,0.2905989,3220.6,3220.3,0.001]
[1767671985553,0.002,3220.7,3220.3,0.001]
[1767671985845,0.002,3220.7,3220.3,0.94723002]
[1767671990458,0.002,3220.4,3220.3,0.94723002]
[1767671990650,0.92378154,3220.6,3220.3,0.001]
[1767671992155,0.002,3220.7,3220.3,0.94723002]
[1767671993458,0.002,3220.7,3220.3,0.001]
[1767671994964,0.002,3220.7,3220.3,0.91022512]
[1767671996090,0.002,3220.7,3219.9,3.01589391]
[1767671996359,0.002,3220.7,3220.1,0.90922512]
[1767671997259,0.002,3220.7,3220.2,0.90922512]
[1767671997565,0.99200247,3220.9,3220.1,4.62278621]
[1767671998061,0.002,3221.0,3220.2,0.90922512]
[1767671998262,0.99200247,3220.8,3220.1,7.72825443]
[1767671998559,0.002,3221.0,3220.2,0.84922224]
[1767671998747,0.29051863,3220.9,3220.3,0.90922512]
[1767671998939,4.09863356,3221.0,3220.3,0.90922512]
[1767671999339,0.99200247,3220.9,3220.3,0.90922512]
[1767672000551,0.99200247,3220.9,3220.2,0.84922224]
[1767672000751,0.99200247,3220.9,3220.1,0.90922512]
[1767672001975,4.09673305,3220.9,3220.1,0.90922512]
[1767672002173,0.002,3220.6,3220.1,0.90922512]
[1767672002973,0.002,3220.6,3220.2,0.91741202]
[1767672003276,0.94457753,3220.9,3220.0,4.68249054]
[1767672003449,0.94457753,3220.9,3220.1,0.55999026]
[1767672003962,0.94257753,3220.8,3220.1,0.55999026]
[1767672004473,0.002,3220.9,3219.8,0.91841202]
[1767672004474,0.94257753,3220.6,3219.8,0.91841202]
[1767672005177,0.94257753,3220.6,3219.8,0.001]
[1767672005752,0.94257753,3220.3,3219.8,0.001]
[1767672006052,0.94257753,3220.2,3219.8,0.001]
[1767672006245,0.94257753,3220.0,3219.8,0.001]
[1767672007094,0.17555775,3220.1,3219.8,0.001]
[1767672007297,4.86089541,3220.3,3219.8,0.001]
[1767672007583,0.94257753,3220.2,3219.8,0.001]
[1767672007759,0.94257753,3220.2,3219.5,0.001]
[1767672008982,0.94257753,3220.2,3219.5,0.91841202]
[1767672010481,0.813,3220.3,3219.5,0.91841202]
[1767672011063,3.91833793,3220.3,3219.5,0.91841202]
[1767672011275,5.65751862,3220.3,3219.5,0.91841202]
[1767672011854,5.65751862,3220.3,3219.5,0.001]
[1767672011855,0.94257753,3220.2,3219.5,0.001]
[1767672012775,0.813,3220.3,3219.5,0.91841202]
[1767672013981,0.813,3220.3,3219.8,0.001]
[1767672014164,2.24165622,3220.3,3219.8,0.001]
[1767672014482,0.002,3220.0,3219.8,0.001]
[1767672018189,0.94457753,3220.0,3219.8,0.001]
[1767672018568,0.94457753,3220.0,3219.5,0.001]
[1767672018969,0.002,3220.0,3219.5,0.001]
[1767672019161,0.94257753,3219.9,3219.5,0.001]
[1767672021974,0.002,3220.0,3219.5,0.001]
[1767672023780,0.94457753,3220.0,3219.5,0.001]
[1767672025170,0.002,3220.0,3219.5,0.001]
[1767672025371,0.94257753,3220.2,3219.5,0.91841202]
[1767672025568,4.62684116,3221.0,3219.5,0.91841202]
[1767672025569,0.94257753,3220.8,3219.7,0.91741202]
[1767672025779,0.94257753,3220.7,3219.8,4.02319498]
[1767672026304,0.94257753,3220.7,3219.9,0.91741202]
[1767672027390,0.94257753,3220.7,3219.9,4.02308526]
[1767672027597,0.94257753,3220.7,3220.0,0.91741202]
[1767672028187,0.002,3220.9,3220.1,0.91741202]
[1767672029510,0.002,3220.9,3220.2,0.91741202]
[1767672031881,0.9364094,3220.9,3220.2,0.91741202]
[1767672033716,0.9364094,3220.9,3220.0,0.43346443]
[1767672033717,0.002,3220.9,3220.3,0.9623331]
[1767672034084,0.002,3220.9,3220.3,1.3691113]
[1767672035713,0.002,3220.9,3220.4,0.9623331]
[1767672036409,0.002,3221.0,3220.3,3.51207065]
[1767672036615,0.002,3221.0,3220.4,0.9623331]
[1767672037807,0.002,3221.0,3220.5,0.9623331]
[1767672037994,0.002,3221.0,3220.4,3.10514901]
[1767672037995,0.002,3221.0,3220.7,0.9623331]
[1767672038603,0.002,3220.9,3220.7,0.9623331]
[1767672038803,0.002,3221.0,3220.6,0.40674821]
[1767672039221,0.1588716,3221.0,3220.3,4.47437675]
[1767672039601,0.1588716,3221.0,3220.3,4.47246799]
[1767672040106,0.1588716,3221.0,3220.3,1.36720254]
[1767672040311,0.1588716,3221.0,3220.3,4.47247236]
[1767672040790,0.002,3221.0,3220.4,0.9623331]
[1767672040995,0.002,3221.0,3220.5,0.9623331]
[1767672041716,0.1568716,3220.9,3220.1,0.9623331]
[1767672046818,0.002,3221.0,3220.2,0.9623331]
[1767672050030,0.1588716,3221.0,3220.2,0.9623331]
[1767672050239,0.1568716,3220.9,3220.2,0.9623331]
[1767672050734,0.1568716,3220.9,3220.5,0.001]
[1767672051402,0.1568716,3220.8,3220.2,0.9623331]
[1767672051731,0.1568716,3220.8,3219.9,0.9623331]
[1767672052537,0.1568716,3220.8,3220.0,1.36923858]
[1767672054430,3.2617221,3220.8,3220.0,1.36923858]
[1767672054804,3.2617221,3220.8,3220.0,0.9623331]
[1767672055509,0.1568716,3220.8,3220.0,0.9623331]
[1767672055928,0.1568716,3220.8,3220.0,4.0679208]
[1767672056170,0.813,3220.9,3220.1,0.92453522]
[1767672056438,0.813,3220.9,3220.1,0.91681659]
[1767672056607,0.813,3220.9,3220.3,0.91681659]
[1767672058830,0.815,3221.0,3220.3,0.91681659]
[1767672060618,3.91963829,3221.0,3220.3,0.91681659]
[1767672060808,0.815,3221.0,3220.3,0.91681659]
[1767672061241,0.002,3221.0,3220.3,4.02211527]
[1767672061437,0.002,3221.0,3220.5,0.97230659]
[1767672062319,0.002,3220.7,3220.5,0.97230659]
[1767672062512,0.002,3221.0,3220.4,0.40221153]
[1767672062746,0.002,3221.0,3220.5,0.97230659]
[1767672063611,0.002,3221.0,3220.5,4.07738325]
[1767672063826,0.1588716,3221.1,3220.5,4.07738325]
[1767672063827,0.002,3221.1,3220.6,1.42026607]
[1767672064023,0.002,3221.2,3220.7,0.97230659]
[1767672064217,0.002,3221.3,3220.7,0.97230659]
[1767672065946,0.002,3221.3,3220.8,0.97230659]
[1767672066453,0.002,3221.5,3220.8,0.97230659]
[1767672066653,0.002,3221.6,3220.9,1.38002747]
[1767672066837,0.002,3221.6,3221.0,0.97230659]
[1767672067144,0.002,3221.7,3221.1,0.97230659]
[1767672067323,0.002,3221.8,3221.0,0.97230659]
[1767672067644,0.1588716,3221.8,3221.0,0.97230659]
[1767672067821,0.1588716,3221.8,3221.0,4.07689448]
[1767672068140,0.002,3221.8,3221.2,0.97230659]
[1767672070222,0.002,3221.8,3221.3,0.97230659]
[1767672070431,0.002,3222.1,3221.2,3.10441892]
[1767672070750,0.1588716,3222.0,3221.2,3.10441892]
[1767672071743,0.002,3222.1,3221.4,0.97230659]
[1767672071913,0.002,3222.1,3221.5,0.97230659]
[1767672072114,0.002,3222.6,3221.9,0.97230659]
[1767672072357,0.002,3222.6,3221.6,3.10404767]
[1767672072358,0.1588716,3222.6,3221.6,4.07635426]
[1767672072516,0.1568716,3222.5,3221.7,0.71804395]
[1767672073726,0.15979617,3222.6,3221.8,0.97230659]
[1767672074320,0.002,3222.6,3221.8,0.97230659]
[1767672074520,0.002,3222.0,3221.8,0.97230659]
[1767672074723,0.002,3222.6,3221.8,0.97230659]
[1767672074938,0.002,3222.6,3221.9,0.97230659]
[1767672075253,3.10510839,3222.6,3221.9,0.97230659]
[1767672075546,3.26290456,3222.6,3221.9,0.97230659]
[1767672076044,0.002,3222.6,3221.9,0.97230659]
[1767672076652,0.00027491,3222.7,3222.1,0.97230659]
[1767672077349,0.00027491,3222.7,3222.2,0.97230659]
[1767672086260,0.00027491,3222.7,3222.5,0.001]
[1767672087257,0.15779617,3222.5,3221.4,0.97230659]
[1767672087957,0.81327491,3222.7,3221.5,0.97230659]
[1767672088164,0.15779617,3222.6,3221.7,0.97230659]
[1767672088662,3.26089689,3222.6,3221.7,0.97230659]
[1767672088969,6.36399761,3222.6,3221.7,0.97230659]
[1767672091338,3.10310072,3222.6,3221.7,0.97230659]
[1767672092164,6.20620144,3222.6,3221.7,0.97230659]
[1767672092370,7.07404957,3222.6,3221.7,0.97230659]
[1767672093170,0.15779617,3222.5,3221.3,8.6302759]
[1767672093697,0.15779617,3222.3,3221.3,5.52597203]
[1767672093865,0.15779617,3222.3,3221.3,0.90858328]
[1767672094180,0.15779617,3222.3,3221.3,0.001]
[1767672094377,0.15779617,3222.3,3221.3,0.52845292]
[1767672095466,0.15779617,3222.3,3221.3,0.001]
[1767672095767,0.15779617,3221.9,3221.3,0.001]
[1767672097057,3.26164464,3221.9,3221.3,0.001]
[1767672097463,0.15779617,3221.8,3221.3,0.001]
[1767672097665,6.20769694,3221.9,3221.3,0.001]
[1767672097973,0.62076969,3221.8,3221.6,0.001]
[1767672098181,0.62076969,3221.8,3221.3,0.001]
[1767672099169,3.72469112,3221.8,3221.3,0.90858328]
[1767672099343,3.10380101,3221.9,3221.3,0.90858328]
[1767672099638,0.15779617,3222.5,3221.3,0.90858328]
[1767672099842,7.30934315,3222.4,3221.3,0.90858328]
[1767672100067,0.28978903,3222.3,3221.3,0.90858328]
[1767672100268,7.01955412,3222.4,3221.3,0.90858328]
[1767672100567,1.00750676,3222.3,3221.3,0.90858328]
[1767672100768,3.10322287,3222.5,3221.5,0.90758328]
[1767672100973,3.91622287,3222.5,3221.5,0.90758328]
[1767672102368,7.01944574,3222.5,3221.5,0.90758328]
[1767672105972,3.91622287,3222.5,3221.5,0.90758328]
[1767672106166,3.91622287,3222.5,3221.7,0.90758328]
[1767672107382,7.01944574,3222.5,3221.7,0.90758328]
[1767672109878,0.002,3222.2,3221.7,0.90758328]
[1767672110246,0.002,3222.2,3221.6,0.001]
[1767672110448,0.2311735,3222.1,3221.4,0.90758328]
[1767672110648,0.71622972,3222.0,3221.4,0.90758328]
[1767672111089,3.10375865,3221.9,3221.4,0.90758328]
[1767672113279,4.40174126,3222.0,3221.4,0.90758328]
[1767672113482,0.813,3222.0,3221.4,0.90758328]
[1767672114362,3.91667348,3222.0,3221.4,0.90758328]
[1767672115681,0.002,3222.2,3221.4,0.90758328]
[1767672115981,3.10547668,3222.2,3221.4,0.90758328]
[1767672116567,0.002,3222.2,3221.4,0.90758328]
[1767672116890,0.2900044,3222.1,3221.5,0.92984593]
[1767672117057,0.2331735,3222.2,3221.5,0.92984593]
[1767672117257,0.29000446,3222.1,3221.5,0.92984593]
[1767672117575,0.2331735,3222.2,3221.5,0.92984593]
[1767672117887,0.29002214,3222.1,3221.5,0.92984593]
[1767672118186,0.2331735,3222.2,3221.5,0.92984593]
[1767672118381,0.29002208,3222.1,3221.5,0.92984593]
[1767672118689,0.2331735,3222.2,3221.5,0.92984593]
[1767672118988,3.3935894,3222.1,3221.5,0.92984593]
[1767672119177,3.10356599,3222.1,3221.5,0.92984593]
[1767672119566,0.2311735,3222.0,3221.3,0.93084593]
[1767672120494,6.85115517,3222.1,3221.3,0.93084593]
[1767672121881,3.74758918,3222.1,3221.3,0.93084593]
[1767672122091,3.74758918,3222.1,3221.6,0.001]
[1767672122392,0.002,3221.7,3221.6,0.95891819]
[1767672122894,0.002,3222.0,3221.6,0.001]
[1767672123562,0.002,3222.0,3221.6,0.95891819]
[1767672123963,0.002,3222.0,3221.6,0.001]
[1767672125664,0.2331735,3222.0,3221.6,0.001]
[1767672125865,0.2311735,3221.8,3221.6,0.001]
[1767672129499,3.33686265,3222.0,3221.6,0.001]
[1767672133791,6.4405518,3222.0,3221.6,0.001]
[1767672134873,0.002,3221.7,3221.6,0.001]
[1767672140582,0.002,3222.0,3221.7,0.95791819]
[1767672146106,0.002,3222.0,3221.6,0.001]
[1767672146409,0.002,3221.7,3221.6,0.001]
[1767672147102,0.2351735,3222.0,3221.6,0.001]
[1767672147486,0.002,3222.0,3221.6,0.001]
[1767672149203,0.002,3222.0,3221.6,0.95891819]
[1767672150804,0.002,3222.5,3221.9,0.95791819]
[1767672152815,0.002,3222.5,3222.0,0.96806825]
[1767672153514,0.002,3222.8,3221.9,3.10374544]
[1767672153515,0.002,3222.8,3222.4,0.96806825]
[1767672153699,0.002,3222.8,3222.6,0.96806825]
[1767672158921,1.0481735,3223.3,3222.4,0.96806825]
[1767672158922,0.002,3223.3,3222.4,0.96806825]
[1767672159232,0.2331735,3223.2,3222.4,0.96806825]
[1767672159395,0.2331735,3223.1,3222.4,0.96806825]
[1767672160019,0.002,3223.3,3222.4,0.96806825]
[1767672160221,3.10442743,3223.3,3222.4,0.96806825]
[1767672160426,0.002,3223.3,3222.6,0.96806825]
[1767672162737,0.2351735,3223.3,3222.6,0.96806825]
[1767672165832,0.002,3223.3,3222.6,0.96806825]
[1767672170631,0.002,3223.0,3222.6,0.96806825]
[1767672173437,0.002,3223.0,3222.5,4.0712061]
[1767672173609,0.002,3223.3,3222.7,0.96806825]
[1767672180042,3.10441057,3223.3,3222.7,0.96806825]
[1767672180346,6.20682114,3223.3,3222.7,0.96806825]
[1767672180722,3.10441057,3223.3,3222.7,0.96806825]
[1767672180929,0.002,3223.3,3222.7,0.96806825]
[1767672181938,0.2351735,3223.3,3222.7,0.96806825]
[1767672182143,3.33766591,3223.3,3222.5,0.97945429]
[1767672182339,3.33766591,3223.3,3222.9,0.001]
[1767672182544,0.002,3223.0,3222.9,0.001]
[1767672185039,0.94475532,3223.0,3222.2,5.11980847]
[1767672185234,0.94475532,3223.0,3222.3,0.51198085]
[1767672185436,0.94475532,3223.0,3222.2,0.31035418]
[1767672185734,1.23301933,3222.9,3222.0,0.97945429]
[1767672185924,0.29026401,3222.8,3222.0,0.97945429]
[1767672186341,1.23301933,3222.8,3222.0,0.97945429]
[1767672186542,0.94275532,3222.8,3222.0,0.97945429]
[1767672186729,3.10298817,3222.7,3222.0,0.97945429]
[1767672186930,3.10298817,3222.7,3222.0,1.15869972]
[1767672187242,0.94275532,3222.6,3222.0,1.15869972]
[1767672188769,3.10318076,3222.5,3222.0,1.15869972]
[1767672189053,3.10318076,3222.5,3222.0,0.97945429]
[1767672190048,4.04593608,3222.5,3221.7,0.97945429]
[1767672190425,0.94275532,3222.4,3221.7,0.97945429]
[1767672190653,0.94275532,3222.4,3221.6,0.001]
[1767672191160,0.94275532,3222.3,3221.6,0.98045429]
[1767672191384,0.94275532,3222.3,3221.6,1.15979972]
[1767672193479,0.94275532,3222.2,3221.6,1.15979972]
[1767672193681,0.94275532,3222.2,3221.6,0.001]
[1767672194779,0.94275532,3222.0,3221.9,0.001]
[1767672198995,0.813,3222.1,3221.9,0.001]
[1767672199366,3.91657304,3222.1,3221.9,0.001]
[1767672199682,4.61856783,3222.1,3221.9,0.001]
[1767672200771,0.94275532,3222.0,3221.3,0.001]
[1767672201292,0.94275532,3222.0,3221.3,0.98045429]
[1767672202285,6.2075173,3221.9,3221.3,0.001]
[1767672202481,0.94275532,3221.8,3221.1,0.97945429]
[1767672206100,3.10395133,3221.7,3221.1,0.97945429]
[1767672206285,0.813,3221.6,3221.1,0.97945429]
[1767672206498,0.002,3221.5,3221.1,0.97945429]
[1767672207298,0.70429027,3221.5,3221.1,0.97945429]
[1767672208114,0.94275532,3221.3,3220.4,0.97945429]
[1767672208314,0.94275532,3221.3,3220.3,0.001]
[1767672208515,4.6240298,3220.9,3220.3,0.98045429]
[1767672209384,5.56678512,3220.9,3220.3,0.98045429]
[1767672209587,5.56678512,3220.9,3220.3,0.001]
[1767672209782,0.63797851,3220.8,3220.3,0.001]
[1767672210592,3.10491508,3220.7,3220.3,0.001]
[1767672210789,5.56678512,3220.6,3219.8,0.98045429]
[1767672210993,0.94275532,3220.5,3219.8,0.98045429]
[1767672211693,0.95977998,3220.4,3219.8,0.98045429]
[1767672212307,0.95977998,3220.4,3219.8,0.001]
[1767672212992,4.06506794,3220.4,3219.8,0.001]
[1767672213601,7.1703559,3220.4,3219.8,0.001]
[1767672214016,7.1703559,3220.4,3219.5,0.95113768]
[1767672214017,5.58380978,3220.3,3219.5,0.95113768]
[1767672214215,1.17943857,3220.2,3219.5,0.95113768]
[1767672215009,5.24468448,3220.2,3219.5,0.95113768]
[1767672215210,4.6240298,3220.0,3219.5,0.001]
[1767672215409,0.95977998,3220.1,3219.5,0.001]
[1767672217104,4.6240298,3220.3,3219.5,0.001]
[1767672217105,0.95977998,3219.9,3219.5,0.001]
[1767672217294,0.95977998,3219.9,3219.0,0.001]
[1767672217491,0.95977998,3219.7,3219.0,0.001]
[1767672218710,0.95977998,3219.7,3219.3,0.001]
[1767672218904,0.95977998,3219.6,3219.0,0.001]
[1767672219309,0.95977998,3219.3,3218.4,0.95013768]
[1767672221485,0.95977998,3219.2,3218.4,0.95013768]
[1767672223361,0.95977998,3219.2,3218.5,0.95013768]
[1767672223573,3.10621127,3219.4,3218.5,0.95013768]
[1767672223574,0.95977998,3219.4,3218.5,0.95013768]
[1767672223880,0.813,3219.6,3218.8,0.95013768]
[1767672224673,1.77277998,3219.6,3218.8,0.95013768]
[1767672225273,3.91905793,3219.6,3218.8,0.95013768]
[1767672225476,4.87883791,3219.6,3218.8,0.95013768]
[1767672225778,0.95977998,3219.5,3218.5,3.1070316]
[1767672225968,0.95977998,3219.5,3218.4,0.32017756]